fUST/lending_fUST_20250818
["ID","MTS","AMOUNT","RATE_DAILY","PERIOD"]
[380068771,1755528635632,-151.0,0.00019726,2]
[380068772,1755528635641,-480.0,0.00019726,2]
[380068773,1755528635741,-480.0,0.00019726,2]
[380068774,1755528635752,-480.0,0.00019726,2]
[380068775,1755528635762,-480.0,0.00019726,2]
[380068776,1755528635776,-3631.01,0.00019726,2]
[380068777,1755528635786,-151.0,0.00019726,2]
[380068778,1755528635797,-524.23,0.00019726,2]
[380068779,1755528635807,-151.0,0.00019726,2]
[380068780,1755528635818,-151.0,0.00019726,2]
[380068781,1755528635829,-191.59743,0.00019726,2]
[380068782,1755528635840,-151.0,0.00019726,2]
[380068783,1755528635850,-151.0,0.00019726,2]
[380068784,1755528635860,-1058.65,0.00019726,2]
[380068785,1755528635872,-151.0,0.00019726,2]
[380068786,1755528635883,-151.0,0.00019726,2]
[380068787,1755528635894,-578.26,0.00019726,2]
[380068788,1755528635910,-480.0,0.00019726,2]
[380068789,1755528635924,-571.70862887,0.00019726,2]
[380068790,1755528635934,-480.0,0.00019726,2]
[380068791,1755528635944,-480.0,0.00019726,2]
[380068792,1755528635954,-480.0,0.00019726,2]
[380068793,1755528635963,-480.0,0.00019726,2]
[380068794,1755528635973,-480.0,0.00019726,2]
[380068795,1755528635982,-552.82,0.00019726,2]
[380068796,1755528635992,-480.0,0.00019726,2]
[380068797,1755528636002,-1495.35,0.00019726,2]
[380068798,1755528636012,-480.0,0.00019726,2]
[380068799,1755528636023,-480.0,0.00019726,2]
[380068800,1755528636037,-480.0,0.00019726,2]
[380068801,1755528636047,-480.0,0.00019726,2]
[380068802,1755528636057,-555.45,0.00019726,2]
[380068803,1755528636067,-480.0,0.00019726,2]
[380068804,1755528636086,-493.35669457,0.00019726,2]
[380068805,1755528636097,-460.0,0.00019726,2]
[380068806,1755528636107,-256.63700705,0.00019726,2]
[380068807,1755528636116,-775.36,0.00019726,2]
[380068808,1755528636126,-480.0,0.00019726,2]
[380068809,1755528636135,-480.0,0.00019726,2]
[380068810,1755528636145,-483.04,0.00019726,2]
[380068811,1755528636155,-346.96540438,0.00019726,2]
[380068812,1755528636164,-480.0,0.00019726,2]
[380068813,1755528636173,-480.0,0.00019726,2]
[380068814,1755528636183,-480.0,0.00019726,2]
[380068815,1755528636192,-480.0,0.00019726,2]
[380068816,1755528636202,-480.0,0.00019726,2]
[380068817,1755528636212,-583.38,0.00019726,2]
[380068818,1755528636221,-869.04,0.00019726,2]
[380068819,1755528636230,-158.0,0.000198,2]
[380068820,1755528636240,-153.0,0.000198,2]
[380068821,1755528636249,-432.0667886,0.000198,2]
[380068822,1755528636258,-153.0,0.000198,2]
[380068823,1755528636267,-162.713526,0.00019863,2]
[380068824,1755528636280,-500.0,0.00019874,2]
[380068825,1755528636290,-500.0,0.00019874,2]
[380068826,1755528636299,-500.0,0.00019874,2]
[380068827,1755528636308,-1285.65,0.0001988,3]
[380068828,1755528636317,-2571.31,0.0001989,3]
[380068829,1755528636326,-3614.34440631,0.000199,2]
[380068830,1755528636335,-246.42,0.00019916,2]
[380068831,1755528636345,-151.0,0.0001999,2]
[380068832,1755528636354,-151.0,0.0001999,2]
[380068833,1755528636363,-151.0,0.0001999,2]
[380068834,1755528636372,-169.586895,0.0001999,2]
[380068835,1755528636381,-151.0,0.0001999,2]
[380068836,1755528636391,-184.340972,0.0001999,2]
[380068837,1755528636400,-184.340972,0.0001999,2]
[380068838,1755528636411,-151.0,0.0001999,2]
[380068839,1755528636424,-151.0,0.0001999,2]
[380068840,1755528636435,-60358.42448388,0.0001999,2]
[380068855,1755528638313,-480.0,0.00019178,2]
[380068857,1755528638322,-480.0,0.00019178,2]
[380068859,1755528638332,-768.53,0.00019178,2]
[380068861,1755528638342,-428.19,0.00019452,2]
[380068863,1755528638353,-480.0,0.00019452,2]
[380068865,1755528638362,-768.53,0.00019452,2]
[380068867,1755528638372,-1347.54367121,0.0001999,2]
[380068869,1755528638383,-32110.12779632,0.0001999,2]
[380068872,1755528638393,-152.82209,0.0001999,2]
[380068874,1755528638402,-158.0,0.0002,2]
[380068875,1755528638411,-311.98790061,0.0002,2]
[380068878,1755528638424,-168.01209939,0.0002,2]
[380068880,1755528638436,-480.0,0.0002,2]
[380068882,1755528638446,-353.51,0.0002,2]
[380068884,1755528638455,-480.0,0.0002,2]
[380068886,1755528638465,-834.8,0.0002,2]
[380068888,1755528638475,-480.0,0.0002,2]
[380068889,1755528638484,-151.0,0.0002,2]
[380068892,1755528638497,-355.83797241,0.0002,2]
[380068894,1755528638510,-213.57202759,0.0002,2]
[380068896,1755528638522,-480.0,0.0002,2]
[380068898,1755528638540,-480.0,0.0002,2]
[380068900,1755528638556,-512.84,0.0002,2]
[380068902,1755528638566,-480.0,0.0002,2]
[380068904,1755528638576,-151.0,0.0002,2]
[380068906,1755528638585,-151.0,0.0002,2]
[380068908,1755528638595,-151.415057,0.0002,2]
[380068910,1755528638604,-151.0,0.0002,2]
[380068912,1755528638613,-151.0,0.0002,2]
[380068914,1755528638622,-184.405295,0.0002,2]
[380068916,1755528638631,-184.405295,0.0002,2]
[380068918,1755528638640,-184.405295,0.0002,2]
[380068920,1755528638649,-184.405295,0.0002,2]
[380068922,1755528638658,-157.62,0.0002,2]
[380068924,1755528638667,-480.0,0.0002,2]
[380068926,1755528638676,-537.03583215,0.0002,2]
[380068928,1755528638686,-152.080669,0.0002,2]
[380068930,1755528638695,-152.080669,0.0002,2]
[380068932,1755528638704,-480.0,0.0002,2]
[380068934,1755528638810,-480.0,0.0002,2]
[380068935,1755528638820,-480.0,0.0002,2]
[380068936,1755528638830,-255.721479,0.0002,2]
[380068937,1755528638840,-975.69,0.0002,2]
[380068938,1755528638849,-573.24,0.0002,2]
[380068939,1755528638858,-518.04604819,0.0002,2]
[380068940,1755528638867,-200.169607,0.0002,2]
[380068941,1755528638876,-151.0,0.0002,2]
[380068942,1755528638885,-782.91,0.0002,2]
[380068943,1755528638895,-480.0,0.0002,2]
[380068944,1755528638904,-2237.86,0.0002,2]
[380068945,1755528638914,-480.0,0.0002,2]
[380068946,1755528638924,-1024.53,0.0002,2]
[380068947,1755528638934,-480.0,0.0002,2]
[380068948,1755528638944,-480.0,0.0002,2]
[380068949,1755528638953,-480.0,0.0002,2]
[380068950,1755528638963,-151.0,0.0002,2]
[380068951,1755528638972,-151.0,0.0002,2]
[380068952,1755528638982,-1399.8,0.0002,2]
[380068953,1755528638991,-543.27,0.0002,2]
[380068954,1755528639000,-151.0,0.0002,2]
[380068955,1755528639009,-480.0,0.0002,2]
[380068956,1755528639019,-1085.81,0.0002,2]
[380068957,1755528639031,-521.89,0.0002,2]
[380068958,1755528639040,-480.0,0.0002,2]
[380068959,1755528639049,-1824.89,0.0002,2]
[380068960,1755528639059,-2840.04,0.0002,2]
[380068962,1755528639069,-613.65,0.0002,2]
[380068963,1755528639078,-649.96,0.0002,2]
[380068964,1755528639088,-525.95376,0.0002,2]
[380068966,1755528639097,-525.95376,0.0002,2]
[380068968,1755528639107,-525.95376,0.0002,2]
[380068970,1755528639117,-525.95376,0.0002,2]
[380068972,1755528639127,-1232.94,0.0002,2]
[380068974,1755528639136,-480.0,0.0002,2]
[380068976,1755528639146,-364.59114222,0.0002,2]
[380068978,1755528639155,-179.371345,0.0002,2]
[380068980,1755528639165,-480.0,0.0002,2]
[380068982,1755528639174,-480.0,0.0002,2]
[380068984,1755528639183,-480.0,0.0002,2]
[380068986,1755528639193,-480.0,0.0002,2]
[380068988,1755528639203,-3631.01,0.0002,2]
[380068990,1755528639212,-151.0,0.0002,2]
[380068992,1755528639222,-151.0,0.0002,2]
[380068994,1755528639231,-524.23,0.0002,2]
[380068996,1755528639241,-151.0,0.0002,2]
[380068998,1755528639250,-151.0,0.0002,2]
[380069000,1755528639259,-1058.65,0.0002,2]
[380069002,1755528639269,-151.0,0.0002,2]
[380069004,1755528639280,-578.26,0.0002,2]
[380069006,1755528639290,-480.0,0.0002,2]
[380069008,1755528639299,-480.0,0.0002,2]
[380069010,1755528639308,-480.0,0.0002,2]
[380069012,1755528639318,-480.0,0.0002,2]
[380069014,1755528639327,-480.0,0.0002,2]
[380069016,1755528639337,-480.0,0.0002,2]
[380069018,1755528639347,-552.82,0.0002,2]
[380069020,1755528639356,-480.0,0.0002,2]
[380069021,1755528639366,-1495.35,0.0002,2]
[380069023,1755528639375,-480.0,0.0002,2]
[380069025,1755528639385,-480.0,0.0002,2]
[380069027,1755528639394,-526.39,0.0002,2]
[380069028,1755528639403,-480.0,0.0002,2]
[380069029,1755528639412,-555.45,0.0002,2]
[380069030,1755528639423,-480.0,0.0002,2]
[380069031,1755528639434,-775.36,0.0002,2]
[380069032,1755528639443,-480.0,0.0002,2]
[380069033,1755528639453,-332.51104472,0.0002,2]
[380069034,1755528639463,-483.04,0.0002,2]
[380069035,1755528639472,-480.0,0.0002,2]
[380069036,1755528639481,-480.0,0.0002,2]
[380069037,1755528639491,-480.0,0.0002,2]
[380069038,1755528639500,-480.0,0.0002,2]
[380069039,1755528639510,-480.0,0.0002,2]
[380069040,1755528639519,-583.38,0.0002,2]
[380069041,1755528639530,-869.04,0.0002,2]
[380069042,1755528639539,-1475.26843289,0.00020003,2]
[380069043,1755528639549,-151.0,0.000201,4]
[380069044,1755528639558,-6091.80828178,0.00020173,2]
[380069045,1755528639568,-151.0,0.00020173,2]
[380069046,1755528639577,-151.0,0.00020173,2]
[380069047,1755528639588,-151.0,0.00020173,2]
[380069048,1755528639597,-151.0,0.00020173,2]
[380069050,1755528639607,-1993.31867903,0.00020203,2]
[380069051,1755528639619,-151.0,0.00020268,2]
[380069052,1755528639628,-151.0,0.00020268,2]
[380069053,1755528639638,-153.429522,0.00020268,2]
[380069054,1755528639648,-333.086648,0.00020268,2]
[380069055,1755528639657,-333.086648,0.00020268,2]
[380069056,1755528639667,-353.961423,0.00020268,2]
[380069057,1755528639676,-353.961423,0.00020268,2]
[380069058,1755528639686,-1391.12728585,0.00020268,2]
[380069078,1755528643210,-108.87271415,0.00020268,2]
[380069079,1755528643219,-480.0,0.00020273,2]
[380069080,1755528643228,-480.0,0.00020273,2]
[380069081,1755528643237,-480.0,0.00020273,2]
[380069082,1755528643246,-834.8,0.00020273,2]
[380069083,1755528643256,-151.0,0.00020273,2]
[380069084,1755528643264,-151.0,0.00020273,2]
[380069085,1755528643273,-240.65002275,0.00020273,2]
[380069086,1755528643285,-569.41,0.00020273,2]
[380069087,1755528643294,-480.0,0.00020273,2]
[380069088,1755528643303,-613.79368094,0.00020273,2]
[380069089,1755528643312,-512.84,0.00020273,2]
[380069090,1755528643321,-295.67328,0.00020273,2]
[380069091,1755528643330,-480.0,0.00020273,2]
[380069092,1755528643339,-151.0,0.00020273,2]
[380069093,1755528643348,-184.340972,0.00020273,2]
[380069094,1755528643357,-184.340972,0.00020273,2]
[380069095,1755528643366,-152.961549,0.00020273,2]
[380069097,1755528643375,-151.0,0.00020273,2]
[380069099,1755528643384,-467.17,0.00020273,2]
[380069101,1755528643393,-152.080669,0.00020273,2]
[380069103,1755528643402,-152.080669,0.00020273,2]
[380069105,1755528643411,-480.0,0.00020273,2]
[380069107,1755528643421,-480.0,0.00020273,2]
[380069108,1755528643433,-480.0,0.00020273,2]
[380069109,1755528643442,-975.69,0.00020273,2]
[380069110,1755528643451,-573.24,0.00020273,2]
[380069111,1755528643460,-200.169607,0.00020273,2]
[380069112,1755528643471,-151.0,0.00020273,2]
[380069113,1755528643480,-782.91,0.00020273,2]
[380069114,1755528643489,-480.0,0.00020273,2]
[380069115,1755528643499,-2237.86,0.00020273,2]
[380069116,1755528643509,-499.20826434,0.00020273,2]
[380069117,1755528643519,-1024.53,0.00020273,2]
[380069119,1755528643528,-305.86330356,0.00020273,2]
[380069120,1755528643540,-480.0,0.00020273,2]
[380069122,1755528643550,-480.0,0.00020273,2]
[380069123,1755528643560,-287.204831,0.00020273,2]
[380069124,1755528643569,-1399.8,0.00020273,2]
[380069125,1755528643579,-543.27,0.00020273,2]
[380069126,1755528643589,-480.0,0.00020273,2]
[380069127,1755528643599,-1085.81,0.00020273,2]
[380069128,1755528643608,-521.89,0.00020273,2]
[380069129,1755528643618,-417.15547288,0.00020273,2]
[380069130,1755528643627,-1824.89,0.00020273,2]
[380069131,1755528643637,-2840.04,0.00020273,2]
[380069132,1755528643646,-649.96,0.00020273,2]
[380069134,1755528643655,-106.52012276,0.00020273,2]
[380069139,1755528643701,-507.12987724,0.00020273,2]
[380069140,1755528643710,-525.95376,0.00020273,2]
[380069141,1755528643720,-525.95376,0.00020273,2]
[380069142,1755528643729,-906.76327709,0.00020273,2]
[380069143,1755528643745,-768.53,0.00019726,2]
[380069144,1755528643755,-326.17672291,0.00020273,2]
[380069145,1755528643764,-480.0,0.00020273,2]
[380069146,1755528643774,-480.0,0.00020273,2]
[380069147,1755528643785,-480.0,0.00020273,2]
[380069148,1755528643795,-480.0,0.00020273,2]
[380069149,1755528643805,-480.0,0.00020273,2]
[380069150,1755528643814,-3631.01,0.00020273,2]
[380069151,1755528643824,-151.0,0.00020273,2]
[380069152,1755528643833,-524.23,0.00020273,2]
[380069153,1755528643843,-151.0,0.00020273,2]
[380069154,1755528643853,-151.0,0.00020273,2]
[380069155,1755528643862,-1058.65,0.00020273,2]
[380069156,1755528643872,-151.0,0.00020273,2]
[380069157,1755528643882,-578.26,0.00020273,2]
[380069158,1755528643891,-480.0,0.00020273,2]
[380069159,1755528643900,-480.0,0.00020273,2]
[380069160,1755528643909,-480.0,0.00020273,2]
[380069161,1755528643919,-480.0,0.00020273,2]
[380069162,1755528643929,-480.0,0.00020273,2]
[380069163,1755528643938,-480.0,0.00020273,2]
[380069164,1755528643948,-552.82,0.00020273,2]
[380069165,1755528643958,-480.0,0.00020273,2]
[380069166,1755528643967,-1495.35,0.00020273,2]
[380069167,1755528643977,-480.0,0.00020273,2]
[380069168,1755528643986,-480.0,0.00020273,2]
[380069169,1755528643996,-480.0,0.00020273,2]
[380069170,1755528644005,-555.45,0.00020273,2]
[380069171,1755528644014,-494.76076104,0.00020273,2]
[380069172,1755528644023,-255.026834,0.00020273,2]
[380069173,1755528644035,-151.0,0.00020273,2]
[380069174,1755528644045,-775.36,0.00020273,2]
[380069175,1755528644055,-480.0,0.00020273,2]
[380069176,1755528644064,-483.04,0.00020273,2]
[380069177,1755528644074,-480.0,0.00020273,2]
[380069178,1755528644084,-480.0,0.00020273,2]
[380069179,1755528644093,-480.0,0.00020273,2]
[380069180,1755528644103,-480.0,0.00020273,2]
[380069181,1755528644112,-151.0,0.00020273,2]
[380069182,1755528644122,-395.12,0.00020273,2]
[380069183,1755528644131,-583.38,0.00020273,2]
[380069184,1755528644141,-869.04,0.00020273,2]
[380069185,1755528644150,-151.0,0.00020273,2]
[380069186,1755528644161,-3614.34440619,0.00020316,2]
[380069187,1755528644171,-151.0,0.000204,3]
[380069188,1755528644181,-500.0,0.00020413,2]
[380069189,1755528644190,-501.47743025,0.00020413,2]
[380069190,1755528644201,-500.39064914,0.00020413,2]
[380069191,1755528644211,-500.0,0.00020413,2]
[380069192,1755528644220,-500.68961196,0.00020413,2]
[380069193,1755528644230,-180.17832202,0.00020424,2]
[380069194,1755528644241,-1475.26843289,0.00020465,2]
[380069195,1755528644251,-153.0,0.00020466,2]
[380069196,1755528644261,-153.0,0.00020466,2]
[380069197,1755528644271,-152.955621,0.00020466,2]
[380069198,1755528644280,-151.0,0.00020466,2]
[380069199,1755528644291,-159.373112,0.00020466,2]
[380069200,1755528644300,-151.0,0.00020506,2]
[380069201,1755528644310,-152.47491,0.00020506,2]
[380069202,1755528644320,-151.0,0.00020506,2]
[380069203,1755528644329,-151.0,0.00020506,2]
[380069204,1755528644339,-242.164891,0.00020506,2]
[380069205,1755528644348,-151.0,0.00020506,2]
[380069206,1755528644358,-151.0,0.00020506,2]
[380069207,1755528644369,-184.405295,0.00020506,2]
[380069208,1755528644378,-184.405295,0.00020506,2]
[380069209,1755528644388,-151.0,0.00020506,2]
[380069210,1755528644398,-151.0,0.00020506,2]
[380069211,1755528644407,-333.086648,0.00020506,2]
[380069212,1755528644418,-333.086648,0.00020506,2]
[380069213,1755528644427,-353.961423,0.00020506,2]
[380069214,1755528644438,-353.961423,0.00020506,2]
[380069215,1755528644447,-500.0,0.00020506,2]
[380069216,1755528644457,-500.72930756,0.00020506,2]
[380069217,1755528644467,-500.0,0.00020506,2]
[380069218,1755528644476,-500.0,0.00020506,2]
[380069219,1755528644486,-500.0,0.00020506,2]
[380069220,1755528644496,-500.0,0.00020506,2]
[380069221,1755528644506,-480.0,0.00020547,2]
[380069222,1755528644515,-606.90833709,0.00020547,2]
[380069223,1755528644525,-480.0,0.00020547,2]
[380069224,1755528644549,-834.8,0.00020547,2]
[380069225,1755528644568,-569.41,0.00020547,2]
[380069226,1755528644579,-480.0,0.00020547,2]
[380069227,1755528644589,-512.84,0.00020547,2]
[380069228,1755528644599,-480.0,0.00020547,2]
[380069229,1755528644608,-151.0,0.00020547,2]
[380069230,1755528644617,-184.340972,0.00020547,2]
[380069231,1755528644627,-184.340972,0.00020547,2]
[380069232,1755528644636,-151.0,0.00020547,2]
[380069233,1755528644645,-152.080669,0.00020547,2]
[380069234,1755528644655,-152.080669,0.00020547,2]
[380069235,1755528644664,-480.0,0.00020547,2]
[380069236,1755528644673,-480.0,0.00020547,2]
[380069237,1755528644683,-480.0,0.00020547,2]
[380069238,1755528644692,-975.69,0.00020547,2]
[380069239,1755528644702,-573.24,0.00020547,2]
[380069240,1755528644712,-200.169607,0.00020547,2]
[380069241,1755528644721,-151.0,0.00020547,2]
[380069242,1755528644730,-782.91,0.00020547,2]
[380069243,1755528644739,-159.96256429,0.00020547,2]
[380069244,1755528644748,-2237.86,0.00020547,2]
[380069245,1755528644758,-1024.53,0.00020547,2]
[380069246,1755528644767,-480.0,0.00020547,2]
[380069247,1755528644776,-480.0,0.00020547,2]
[380069248,1755528644787,-1399.8,0.00020547,2]
[380069249,1755528644796,-543.27,0.00020547,2]
[380069250,1755528644806,-480.0,0.00020547,2]
[380069251,1755528644815,-1085.81,0.00020547,2]
[380069252,1755528644825,-521.89,0.00020547,2]
[380069253,1755528644834,-1824.89,0.00020547,2]
[380069254,1755528644843,-2840.04,0.00020547,2]
[380069255,1755528644852,-649.96,0.00020547,2]
[380069256,1755528644862,-613.65,0.00020547,2]
[380069257,1755528644872,-525.95376,0.00020547,2]
[380069258,1755528644881,-525.95376,0.00020547,2]
[380069259,1755528644891,-1232.94,0.00020547,2]
[380069260,1755528644900,-480.0,0.00020547,2]
[380069261,1755528644910,-480.0,0.00020547,2]
[380069262,1755528644919,-480.0,0.00020547,2]
[380069263,1755528644929,-480.0,0.00020547,2]
[380069264,1755528644938,-480.0,0.00020547,2]
[380069265,1755528644948,-3631.01,0.00020547,2]
[380069266,1755528644957,-151.0,0.00020547,2]
[380069267,1755528644967,-524.23,0.00020547,2]
[380069268,1755528644976,-151.0,0.00020547,2]
[380069269,1755528644985,-151.0,0.00020547,2]
[380069270,1755528644995,-1058.65,0.00020547,2]
[380069271,1755528645004,-209.527776,0.00020547,2]
[380069272,1755528645014,-578.26,0.00020547,2]
[380069273,1755528645023,-480.0,0.00020547,2]
[380069274,1755528645034,-480.0,0.00020547,2]
[380069275,1755528645043,-480.0,0.00020547,2]
[380069276,1755528645053,-480.0,0.00020547,2]
[380069277,1755528645062,-480.0,0.00020547,2]
[380069278,1755528645072,-480.0,0.00020547,2]
[380069279,1755528645081,-552.82,0.00020547,2]
[380069280,1755528645091,-480.0,0.00020547,2]
[380069281,1755528645100,-1495.35,0.00020547,2]
[380069282,1755528645110,-480.0,0.00020547,2]
[380069283,1755528645119,-480.0,0.00020547,2]
[380069284,1755528645128,-480.0,0.00020547,2]
[380069285,1755528645138,-555.45,0.00020547,2]
[380069286,1755528645147,-775.36,0.00020547,2]
[380069287,1755528645157,-480.0,0.00020547,2]
[380069288,1755528645166,-483.04,0.00020547,2]
[380069289,1755528645176,-628.58910949,0.00020547,2]
[380069290,1755528645185,-480.0,0.00020547,2]
[380069291,1755528645195,-480.0,0.00020547,2]
[380069292,1755528645216,-480.0,0.00020547,2]
[380069293,1755528645236,-583.38,0.00020547,2]
[380069294,1755528645258,-869.04,0.00020547,2]
[380069295,1755528645275,-151.0,0.000206,4]
[380069296,1755528645287,-583.62358749,0.0002073,2]
[380069297,1755528645296,-151.0,0.00020731,2]
[380069298,1755528645305,-151.0,0.00020731,2]
[380069299,1755528645314,-222.617438,0.00020731,2]
[380069300,1755528645323,-3614.34440619,0.00020731,2]
[380069301,1755528645332,-156.47284068,0.00020752,2]
[380069302,1755528645342,-156.47284068,0.00020752,2]
[380069303,1755528645353,-151.0,0.00020816,2]
[380069304,1755528645363,-151.0,0.00020816,2]
[380069305,1755528645373,-2000.0,0.00020816,2]
[380069306,1755528645383,-480.0,0.00020821,2]
[380069307,1755528645392,-480.0,0.00020821,2]
[380069308,1755528645402,-834.8,0.00020821,2]
[380069309,1755528645411,-151.0,0.00020821,2]
[380069310,1755528645422,-151.0,0.00020821,2]
[380069311,1755528645434,-569.41,0.00020821,2]
[380069312,1755528645548,-480.0,0.00020821,2]
[380069313,1755528645558,-512.84,0.00020821,2]
[380069314,1755528645568,-601.15,0.00020821,2]
[380069315,1755528645578,-151.0,0.00020821,2]
[380069316,1755528645588,-184.340972,0.00020821,2]
[380069317,1755528645598,-184.340972,0.00020821,2]
[380069318,1755528645607,-151.0,0.00020821,2]
[380069319,1755528645616,-151.0,0.00020821,2]
[380069320,1755528645626,-151.0,0.00020821,2]
[380069321,1755528645635,-184.405295,0.00020821,2]
[380069322,1755528645645,-184.405295,0.00020821,2]
[380069323,1755528645654,-152.080669,0.00020821,2]
[380069324,1755528645664,-152.080669,0.00020821,2]
[380069325,1755528645673,-480.0,0.00020821,2]
[380069326,1755528645683,-480.0,0.00020821,2]
[380069327,1755528645692,-480.0,0.00020821,2]
[380069328,1755528645701,-975.69,0.00020821,2]
[380069329,1755528645711,-573.24,0.00020821,2]
[380069330,1755528645721,-200.169607,0.00020821,2]
[380069331,1755528645730,-151.0,0.00020821,2]
[380069332,1755528645740,-782.91,0.00020821,2]
[380069333,1755528645750,-2237.86,0.00020821,2]
[380069334,1755528645760,-1024.53,0.00020821,2]
[380069336,1755528645770,-480.0,0.00020821,2]
[380069337,1755528645780,-480.0,0.00020821,2]
[380069338,1755528645792,-1399.8,0.00020821,2]
[380069339,1755528645801,-543.27,0.00020821,2]
[380069340,1755528645811,-480.0,0.00020821,2]
[380069343,1755528645821,-1085.81,0.00020821,2]
[380069344,1755528645832,-521.89,0.00020821,2]
[380069345,1755528645841,-1824.89,0.00020821,2]
[380069346,1755528645850,-2840.04,0.00020821,2]
[380069347,1755528645860,-649.96,0.00020821,2]
[380069348,1755528645869,-613.65,0.00020821,2]
[380069349,1755528645878,-525.95376,0.00020821,2]
[380069350,1755528645888,-525.95376,0.00020821,2]
[380069351,1755528645897,-1232.94,0.00020821,2]
[380069352,1755528645906,-480.0,0.00020821,2]
[380069353,1755528645915,-540.69,0.00020821,2]
[380069354,1755528645925,-480.0,0.00020821,2]
[380069355,1755528645934,-597.47598491,0.00020821,2]
[380069356,1755528645943,-480.0,0.00020821,2]
[380069357,1755528645952,-3631.01,0.00020821,2]
[380069358,1755528645961,-151.0,0.00020821,2]
[380069359,1755528645971,-524.23,0.00020821,2]
[380069360,1755528645980,-151.0,0.00020821,2]
[380069361,1755528645989,-151.0,0.00020821,2]
[380069362,1755528645998,-1058.65,0.00020821,2]
[380069363,1755528646007,-578.26,0.00020821,2]
[380069364,1755528646016,-553.43787956,0.00020821,2]
[380069365,1755528646026,-151.0,0.00020821,2]
[380069366,1755528646038,-480.0,0.00020821,2]
[380069367,1755528646047,-480.0,0.00020821,2]
[380069368,1755528646057,-480.0,0.00020821,2]
[380069370,1755528646066,-480.0,0.00020821,2]
[380069371,1755528646076,-578.68336586,0.00020821,2]
[380069373,1755528646085,-552.82,0.00020821,2]
[380069374,1755528646094,-480.0,0.00020821,2]
[380069375,1755528646104,-1495.35,0.00020821,2]
[380069376,1755528646114,-333.086648,0.00020821,2]
[380069377,1755528646123,-480.0,0.00020821,2]
[380069379,1755528646132,-480.0,0.00020821,2]
[380069380,1755528646141,-333.086648,0.00020821,2]
[380069381,1755528646151,-480.0,0.00020821,2]
[380069382,1755528646160,-555.45,0.00020821,2]
[380069383,1755528646170,-353.961423,0.00020821,2]
[380069384,1755528646179,-353.961423,0.00020821,2]
[380069385,1755528646188,-775.36,0.00020821,2]
[380069386,1755528646198,-480.0,0.00020821,2]
[380069387,1755528646207,-483.04,0.00020821,2]
[380069388,1755528646216,-480.0,0.00020821,2]
[380069390,1755528646226,-480.0,0.00020821,2]
[380069391,1755528646235,-480.0,0.00020821,2]
[380069392,1755528646244,-583.38,0.00020821,2]
[380069393,1755528646254,-869.04,0.00020821,2]
[380069394,1755528646263,-492.85,0.00020864,2]
[380069395,1755528646272,-1680.0,0.00020884,2]
[380069396,1755528646284,-151.0,0.000209,4]